bitfinex-derivatives/quotes_SOLF0:USTF0_20241215
["timestamp","ask_amount","ask_price","bid_price","bid_amount"]
[1734240320158,2.12,220.99,220.95,5.52758034]
[1734240320359,2.12,220.99,220.95,13.15298633]
[1734240320659,2.12,220.99,220.95,15.41648633]
[1734240320859,2.12,221.0,220.95,15.41648633]
[1734240321760,4.383,221.0,220.95,15.41648633]
[1734240322352,2.2631,220.99,220.95,5.52758034]
[1734240322559,2.2631,220.99,220.93,11.28750599]
[1734240324461,2.12,221.01,220.96,2.2633]
[1734240325657,2.12,221.01,220.96,7.66068036]
[1734240326059,2.12,221.01,220.97,2.2633]
[1734240326256,2.12,221.01,220.97,9.88870599]
[1734240333272,2.2625,221.05,221.0,2.2629]
[1734240333467,9.74540599,221.05,220.97,7.62540599]
[1734240333768,7.62540599,221.03,220.96,5.39738036]
[1734240333966,2.263,221.0,220.96,5.39738036]
[1734240334866,7.62540599,221.01,220.96,5.39738036]
[1734240335062,2.2632,220.98,220.96,5.39738036]
[1734240337672,0.24858,221.09,221.0,37.99139401]
[1734240337873,7.62540599,221.01,221.0,37.99139401]
[1734240338070,2.1,221.01,221.0,37.99139401]
[1734240338270,9.72540599,221.01,221.0,37.99139401]
[1734240338868,4.3629,221.01,221.0,37.99139401]
[1734240339070,2.1,221.01,221.0,37.99139401]
[1734240349889,9.88800599,221.04,221.0,37.99139401]
[1734240350178,11.98800599,221.04,221.0,37.99139401]
[1734240351578,7.62205947,221.03,221.0,21.6891547]
[1734240351783,7.62205947,221.02,220.98,7.62540599]
[1734240351975,7.62205947,221.01,220.98,7.62540599]
[1734240352182,7.62205947,221.0,220.98,7.62540599]
[1734240352383,7.62205947,220.99,220.98,7.62540599]
[1734240352581,4.3626,221.04,220.98,7.62540599]
[1734240352582,4.3626,221.04,220.98,9.88850599]
[1734240352884,4.3626,221.04,220.98,7.62540599]
[1734240353682,2.2624,221.06,220.98,7.62540599]
[1734240353982,2.1,221.05,221.0,7.62540599]
[1734240354576,2.1,221.05,221.01,2.2628]
[1734240354777,2.1,221.05,221.0,7.62540599]
[1734240354778,10.16946854,221.04,221.0,7.62540599]
[1734240355084,2.1,221.05,220.93,0.09317967]
[1734240355085,10.16946854,221.03,220.93,0.09317967]
[1734240355291,2.1,221.05,221.0,7.62540599]
[1734240355677,2.1,221.05,221.01,2.2628]
[1734240356486,2.2624,221.06,221.01,2.2628]
[1734240356987,2.2624,221.06,220.96,2.1]
[1734240357187,2.2624,221.06,221.0,7.62540599]
[1734240357685,2.2624,221.06,221.01,2.2628]
[1734240358690,2.2624,221.06,221.02,3.6316496]
[1734240358991,2.2624,221.06,221.01,2.2628]
[1734240358992,2.2624,221.06,221.03,3.6316496]
[1734240359182,2.2624,221.06,221.01,2.2628]
[1734240359386,2.2624,221.06,221.02,11.58813851]
[1734240359582,2.2624,221.06,221.03,8.8805408]
[1734240359890,2.2624,221.06,221.01,2.2628]
[1734240360082,2.2624,221.06,221.02,11.55687366]
[1734240360284,2.2624,221.06,221.01,2.2628]
[1734240360484,2.2624,221.06,221.02,3.60169504]
[1734240360686,2.2624,221.06,221.01,2.2628]
[1734240360888,2.2624,221.06,221.02,8.85062946]
[1734240361089,2.2624,221.06,221.01,2.2628]
[1734240361289,2.2624,221.06,221.02,8.85106652]
[1734240361487,2.2624,221.06,221.01,2.2628]
[1734240361689,2.2624,221.06,221.02,8.85069263]
[1734240361988,2.2624,221.06,221.01,2.2628]
[1734240362289,2.2624,221.06,221.02,8.85058396]
[1734240362487,29.03031966,221.13,221.05,2.2624]
[1734240362688,9.72540599,221.11,221.05,2.2624]
[1734240362892,2.1,221.1,221.06,8.84985922]
[1734240363093,2.1,221.1,221.07,8.84957426]
[1734240363283,2.1,221.1,221.05,2.2624]
[1734240363490,2.1,221.1,221.06,11.54645728]
[1734240363791,2.1,221.1,221.05,2.2624]
[1734240363996,2.1,221.1,221.06,8.84674548]
[1734240364188,11.98720599,221.11,221.06,2.2623]
[1734240364384,52.08842,221.2,221.06,7.62540599]
[1734240364600,7.62540599,221.16,221.08,7.62540599]
[1734240364893,7.62540599,221.16,221.09,11.54321568]
[1734240365093,7.62540599,221.16,221.1,8.84428938]
[1734240365294,7.62540599,221.16,221.08,7.62540599]
[1734240365493,7.62540599,221.16,221.09,8.83779456]
[1734240365697,2.1,221.15,221.1,2.2619]
[1734240367089,2.1,221.15,221.1,9.88730599]
[1734240367892,2.1,221.15,221.12,2.2617]
[1734240368597,2.1,221.15,221.12,9.88710599]
[1734240368897,2.1,221.17,221.12,9.88710599]
[1734240369787,0.30842,221.2,221.12,7.62540599]
[1734240369989,0.30842,221.2,221.14,7.62540599]
[1734240371393,7.62540599,221.19,221.1,5.30174386]
[1734240371594,0.30842,221.2,221.1,12.92714985]
[1734240371595,7.62540599,221.17,221.1,12.92714985]
[1734240371995,2.2612,221.17,221.12,7.62540599]
[1734240372194,2.1,221.18,221.14,7.62540599]
[1734240372399,2.1,221.18,221.12,7.62540599]
[1734240373197,4.3611,221.18,221.12,7.62540599]
[1734240375206,2.2612,221.17,221.12,7.62540599]
[1734240375499,7.62540599,221.17,221.1,5.30174386]
[1734240375804,2.2615,221.14,221.1,5.30174386]
[1734240377899,2.1,221.18,221.1,5.30174386]
[1734240377900,2.2614,221.16,221.1,5.30174386]
[1734240378104,2.2614,221.16,221.1,12.92714985]
[1734240379307,7.62540599,221.13,221.0,1.5278]
[1734240379603,2.2619,221.1,221.04,9.88790599]
[1734240380908,2.1,221.12,221.06,7.62540599]
[1734240381207,4.3618,221.12,221.06,7.62540599]
[1734240382711,4.3618,221.12,221.06,9.88770599]
[1734240384210,2.2619,221.1,221.06,7.62540599]
[1734240384912,2.2619,221.1,221.04,7.62540599]
[1734240385711,2.2619,221.1,221.05,2.2624]
[1734240386016,2.2621,221.09,221.04,7.62540599]
[1734240386215,7.62540599,221.11,221.04,7.62540599]
[1734240387017,7.62540599,221.11,221.03,2.2626]
[1734240387614,7.62540599,221.09,221.03,2.2626]
[1734240388506,2.2622,221.08,221.03,2.2626]
[1734240388711,2.1,221.07,221.03,2.2626]
[1734240390418,2.2619,221.11,221.06,7.62540599]
[1734240390613,2.1,221.1,221.06,7.62540599]
[1734240391011,2.2619,221.11,221.06,7.62540599]
[1734240391217,2.1,221.1,221.06,7.62540599]
[1734240391617,2.1,221.1,221.06,9.88770599]
[1734240393921,2.1,221.1,221.06,2.2623]
[1734240397221,2.2619,221.11,221.1,47.9]
[1734240397420,4.3619,221.11,221.1,47.9]
[1734240398321,3.5543,221.11,220.99,2.9728]
[1734240398528,7.62540599,221.04,221.0,8.80249375]
[1734240398728,9.72540599,221.04,221.01,8.80249375]
[1734240399030,9.72540599,221.04,221.02,5.23903411]
[1734240399224,9.72540599,221.04,220.99,3.7964]
[1734240399425,9.72540599,221.04,221.0,5.23921249]
[1734240399625,9.72540599,221.04,221.01,5.23921249]
[1734240399826,9.72540599,221.04,220.99,3.7964]
[1734240400025,9.72540599,221.04,221.0,5.2392279]
[1734240400228,9.72540599,221.04,221.01,5.2392279]
[1734240400429,9.72540599,221.04,220.99,3.7964]
[1734240400627,9.72540599,221.04,221.0,5.23929643]
[1734240400821,9.72540599,221.04,221.01,5.23929643]
[1734240401023,9.72540599,221.04,220.99,3.7964]
[1734240401233,9.72540599,221.04,221.0,5.23929643]
[1734240401423,9.72540599,221.04,221.01,5.23929643]
[1734240401727,9.72540599,221.04,220.99,3.7964]
[1734240401931,11.98800599,221.04,221.0,5.23936525]
[1734240402131,11.98800599,221.04,221.01,5.23936525]
[1734240402426,2.1,221.04,221.02,2.2627]
[1734240403928,2.1,221.04,220.98,5.55323571]
[1734240404127,7.62540599,221.03,220.98,5.55323571]
[1734240404525,2.1,221.04,220.99,5.239272]
[1734240404732,2.1,221.04,220.98,13.1786417]
[1734240405028,2.1,221.04,220.99,5.23925598]
[1734240405228,2.1,221.04,220.98,13.1786417]
[1734240405431,2.1,221.04,220.99,5.23839895]
[1734240405627,4.3626,221.04,220.98,15.4417417]
[1734240405830,4.3626,221.04,220.99,5.23839408]
[1734240406027,4.3626,221.04,220.98,15.4417417]
[1734240406232,4.3626,221.04,220.99,5.23839323]
[1734240406434,4.3626,221.04,220.98,15.4417417]
[1734240406632,4.3626,221.04,220.99,5.23801115]
[1734240406828,4.3626,221.04,220.98,15.4417417]
[1734240407031,4.3626,221.04,220.99,5.23801115]
[1734240407231,4.3626,221.04,220.98,15.4417417]
[1734240407433,4.3626,221.04,220.99,5.23754109]
[1734240407633,4.3626,221.04,220.98,15.4417417]
[1734240407832,4.3626,221.04,220.99,5.23754109]
[1734240408035,2.2627,221.03,220.98,15.4417417]
[1734240409333,2.2627,221.03,220.98,13.1786417]
[1734240409542,2.2627,221.03,220.98,5.55323571]
[1734240410928,2.2628,221.02,220.98,5.55323571]
[1734240412732,2.1,221.04,220.98,5.55323571]
[1734240412733,9.88830599,221.01,220.98,5.55323571]
[1734240412937,2.2629,221.01,220.98,5.55323571]
[1734240413138,2.1,221.04,220.98,5.55323571]
[1734240413336,9.72540599,221.04,220.98,5.55323571]
[1734240414440,7.62540599,221.0,220.8,34.63766661]
[1734240414643,7.62540599,220.98,220.91,7.62540599]
[1734240414839,2.1,220.97,220.92,5.23384942]
[1734240415044,2.1,220.97,220.93,5.23384942]
[1734240415240,2.1,220.97,220.91,7.62540599]
[1734240415444,2.1,220.97,220.92,5.23284302]
[1734240415747,2.1,220.97,220.91,9.88930599]
[1734240415943,2.1,220.97,220.92,5.23288618]
[1734240416242,2.1,220.97,220.91,9.88930599]
[1734240416437,2.1,220.97,220.92,5.23232479]
[1734240416638,2.1,220.97,220.91,9.88930599]
[1734240416834,2.1,220.97,220.93,5.47356823]
[1734240417140,2.1,220.97,220.9,7.62540599]
[1734240417345,7.62540599,220.96,220.9,7.62540599]
[1734240418635,2.2636,220.94,220.9,7.62540599]
[1734240419737,7.62540599,220.96,220.89,5.47648963]
[1734240419943,2.2638,220.93,220.83,1.5391]
[1734240420246,2.1,220.92,220.87,9.88970599]
[1734240420451,2.1,220.92,220.88,5.23081602]
[1734240420743,2.1,220.92,220.89,5.23081602]
[1734240420944,2.1,220.92,220.87,9.88970599]
[1734240421147,2.1,220.92,220.88,5.2316602]
[1734240421343,2.1,220.92,220.89,5.2316602]
[1734240421544,2.1,220.92,220.87,9.88970599]
[1734240421841,2.1,220.92,220.88,5.23030567]
[1734240422037,2.1,220.92,220.89,5.23030567]
[1734240422240,2.1,220.92,220.88,5.37359401]
[1734240423138,2.1,220.92,220.89,5.22985575]
[1734240423342,2.1,220.92,220.88,5.37359401]
[1734240429444,4.3638,220.92,220.88,5.37359401]
[1734240437152,2.1,220.92,220.88,5.37359401]
[1734240437355,2.2639,220.91,220.88,5.37359401]
[1734240437949,2.264,220.9,220.84,2.2645]
[1734240438152,7.62540599,220.89,220.84,5.41001962]
[1734240438464,7.62540599,220.87,220.79,7.62540599]
[1734240438658,2.1,220.86,220.81,5.22468751]
[1734240438863,2.1,220.86,220.82,5.22468751]
[1734240439060,2.1,220.86,220.79,7.62540599]
[1734240439264,2.1,220.86,220.81,5.22611156]
[1734240439566,4.3644,220.86,220.81,2.2649]
[1734240439767,4.3644,220.86,220.82,5.22513171]
[1734240440066,4.3644,220.86,220.81,2.2649]
[1734240440268,4.3644,220.86,220.82,5.22645044]
[1734240440564,4.3644,220.86,220.81,2.2649]
[1734240440771,4.3644,220.86,220.82,5.22556656]
[1734240440967,4.3644,220.86,220.81,2.2649]
[1734240441166,4.3644,220.86,220.82,5.22556656]
[1734240441468,4.3644,220.86,220.81,2.2649]
[1734240441667,4.3644,220.86,220.82,5.2262676]
[1734240441968,4.3644,220.86,220.81,2.2649]
[1734240442269,4.3644,220.86,220.82,5.2262676]
[1734240442468,4.3644,220.86,220.81,2.2649]
[1734240442668,4.3644,220.86,220.82,5.22735385]
[1734240442870,4.3644,220.86,220.83,5.45875089]
[1734240443272,2.2645,220.85,220.79,2.265]
[1734240443573,2.2645,220.85,220.79,9.89040599]
[1734240444772,2.2647,220.84,220.78,2.2652]
[1734240446270,2.2647,220.84,220.78,9.89060599]
[1734240446465,2.2647,220.84,220.74,1.4429]
[1734240446466,9.89050599,220.79,220.73,2.2657]
[1734240446775,79.01,220.99,220.74,5.39729628]
[1734240446776,7.62540599,220.77,220.74,5.39729628]
[1734240446972,2.1,220.76,220.74,5.39729628]
[1734240447769,2.1,220.76,220.7,2.2659]
[1734240447966,2.1,220.76,220.69,7.62540599]
[1734240449669,2.2655,220.75,220.69,2.2661]
[1734240449872,2.2655,220.75,220.73,5.38366944]
[1734240450079,9.89090599,220.75,220.73,5.38366944]
[1734240454780,9.89090599,220.75,220.69,2.2661]
[1734240454975,9.89090599,220.75,220.69,9.89150599]
[1734240455972,1.4985,220.85,220.75,2.2655]
[1734240456174,7.62540599,220.81,220.75,7.62540599]
[1734240456376,2.1,220.82,220.77,7.62540599]
[1734240456579,2.1,220.82,220.66,1.4429]
[1734240456580,2.1,220.81,220.75,7.62540599]
[1734240456881,9.72540599,220.81,220.74,7.62540599]
[1734240457573,2.2651,220.8,220.74,7.62540599]
[1734240458783,2.1,220.81,220.76,7.62540599]
[1734240458974,1.3926,220.88,220.78,7.62540599]
[1734240459177,7.62540599,220.85,220.78,7.62540599]
[1734240459783,2.1,220.84,220.78,7.62540599]
[1734240460580,4.3646,220.84,220.79,2.2651]
[1734240467682,2.2653,220.77,220.73,5.53655586]
[1734240467880,2.1,220.76,220.73,5.53655586]
[1734240480700,2.1,220.76,220.73,13.16196185]
[1734240481995,1.4801,220.88,220.75,7.62540599]
[1734240482193,7.62540599,220.83,220.77,7.62540599]
[1734240482396,2.1,220.82,220.77,7.62540599]
[1734240482601,4.3648,220.82,220.77,9.89070599]
[1734240483595,2.1,220.82,220.78,2.2652]
[1734240483800,2.1,220.82,220.79,7.62540599]
[1734240484495,2.1,220.82,220.77,7.62540599]
[1734240485300,2.1,220.82,220.73,5.53655586]
[1734240485301,2.2649,220.81,220.73,5.53655586]
[1734240485493,2.2649,220.81,220.74,12.8648016]
[1734240485494,7.62540599,220.81,220.74,12.8648016]
[1734240485699,7.62540599,220.81,220.75,5.23939561]
[1734240486001,7.62540599,220.81,220.76,5.23939561]
[1734240486195,7.62540599,220.81,220.77,5.23939561]
[1734240486400,7.62540599,220.81,220.74,7.62540599]
[1734240486605,2.265,220.8,220.75,7.50674333]
[1734240486802,2.265,220.8,220.76,5.24124333]
[1734240487002,2.265,220.8,220.77,5.24124333]
[1734240487206,2.265,220.8,220.75,2.2655]
[1734240487400,7.62540599,220.81,220.76,5.24328057]
[1734240487599,7.62540599,220.81,220.74,7.62540599]
[1734240487797,7.62540599,220.81,220.75,5.24326914]
[1734240487996,7.62540599,220.81,220.76,5.24326914]
[1734240488204,7.62540599,220.81,220.77,5.24326914]
[1734240488404,7.62540599,220.81,220.78,5.24558034]
[1734240488604,2.2651,220.8,220.76,7.62540599]
[1734240488804,2.2651,220.8,220.77,5.24558034]
[1734240489002,2.2651,220.8,220.78,5.24558034]
[1734240489198,2.2651,220.8,220.76,7.62540599]
[1734240489403,2.2651,220.8,220.77,5.24443517]
[1734240489703,2.2651,220.8,220.78,5.24443517]
[1734240490002,2.2651,220.8,220.76,7.62540599]
[1734240490200,2.2651,220.8,220.77,5.23661104]
[1734240490401,2.2651,220.8,220.78,5.23661104]
[1734240490603,2.2651,220.8,220.76,7.62540599]
[1734240490997,2.2651,220.8,220.77,5.23277256]
[1734240491203,2.2651,220.8,220.78,5.23277256]
[1734240491403,2.2651,220.8,220.76,7.62540599]
[1734240491706,2.2651,220.8,220.77,5.22958881]
[1734240491903,2.2651,220.8,220.78,5.22958881]
[1734240492206,2.2651,220.8,220.76,7.62540599]
[1734240492405,2.2651,220.8,220.77,5.22484637]
[1734240492604,2.2651,220.8,220.78,5.22484637]
[1734240492803,2.2651,220.8,220.76,7.62540599]
[1734240493007,2.2651,220.8,220.77,5.22618528]
[1734240493199,2.2651,220.8,220.76,7.62540599]
[1734240493406,2.2651,220.8,220.77,5.22986627]
[1734240493607,2.2651,220.8,220.76,7.62540599]
[1734240493803,2.2651,220.8,220.77,5.2329937]
[1734240494108,2.2651,220.8,220.76,7.62540599]
[1734240494307,2.2651,220.8,220.77,5.23171455]
[1734240494607,2.2651,220.8,220.76,7.62540599]
[1734240494802,2.2651,220.8,220.77,5.23370638]
[1734240495010,2.2651,220.8,220.76,7.62540599]
[1734240495306,2.2651,220.8,220.77,5.23329649]
[1734240495508,2.2651,220.8,220.76,7.62540599]
[1734240495705,2.2651,220.8,220.77,5.23385271]
[1734240495908,2.2651,220.8,220.76,7.62540599]
[1734240496106,2.2651,220.8,220.77,5.23579323]
[1734240496304,2.2651,220.8,220.78,5.23742227]
[1734240496508,2.2651,220.8,220.75,2.2655]
[1734240496713,2.2651,220.8,220.76,5.2376436]
[1734240496906,2.2651,220.8,220.77,5.2376436]
[1734240497104,2.2651,220.8,220.78,5.2376436]
[1734240497307,2.2651,220.8,220.75,2.2655]
[1734240497508,2.2651,220.8,220.76,5.24020675]
[1734240497708,2.2651,220.8,220.77,5.24020675]
[1734240497904,4.3649,220.82,220.78,5.24020675]
[1734240498107,4.3649,220.82,220.76,2.2654]
[1734240498305,4.3649,220.82,220.77,5.23967413]
[1734240498506,4.3649,220.82,220.78,5.23967413]
[1734240498806,2.1,220.82,220.79,5.23967413]
[1734240499010,2.1,220.82,220.8,5.23967413]
[1734240499305,2.1,220.82,220.78,2.2652]
[1734240499512,2.1,220.82,220.79,5.24328738]
[1734240499706,2.1,220.82,220.8,5.24328738]
[1734240499909,2.1,220.82,220.78,2.2652]
[1734240500211,2.1,220.82,220.79,5.24203955]
[1734240500411,2.1,220.82,220.8,5.24203955]
[1734240500612,2.1,220.82,220.81,5.24203955]
[1734240503711,2.1,220.82,220.78,9.89060599]
[1734240503910,2.1,220.82,220.81,5.24347486]
[1734240505015,4.3648,220.82,220.81,5.24347486]
[1734240505214,4.3648,220.82,220.78,2.2652]
[1734240505405,4.3648,220.82,220.79,5.2424072]
[1734240505609,4.3648,220.82,220.8,5.2424072]
[1734240505811,4.3648,220.82,220.78,2.2652]
[1734240506010,4.3648,220.82,220.79,5.24363131]
[1734240506215,1.4801,220.88,220.78,2.2652]
[1734240506216,2.1,220.84,220.8,7.50853131]
[1734240506415,2.1,220.84,220.78,7.62540599]
[1734240506712,2.1,220.85,220.8,7.62540599]
[1734240506916,2.1,220.85,220.81,5.24304159]
[1734240507114,2.1,220.85,220.82,5.24304159]
[1734240507414,2.1,220.85,220.83,5.24304159]
[1734240507606,2.1,220.85,220.8,7.62540599]
[1734240507607,2.1,220.85,220.81,2.2648]
[1734240507809,2.1,220.85,220.82,5.24161255]
[1734240508014,1.4312,220.95,220.84,7.62540599]
[1734240508310,7.62540599,220.92,220.85,5.24161255]
[1734240508515,7.62540599,220.92,220.84,7.62540599]
[1734240508516,7.62540599,220.92,220.86,5.24161255]
[1734240508816,7.62540599,220.92,220.87,5.24161255]
[1734240509017,7.62540599,220.92,220.84,7.62540599]
[1734240509213,7.62540599,220.92,220.85,5.23359376]
[1734240509410,7.62540599,220.92,220.86,5.23359376]
[1734240509715,2.264,220.91,220.86,2.2644]
[1734240509917,2.264,220.91,220.87,5.23172816]
[1734240510111,2.264,220.91,220.86,2.2644]
[1734240511616,2.1,220.9,220.86,2.2644]
[1734240519122,2.1,220.9,220.89,5.55784459]
[1734240520127,9.88920599,220.92,220.89,5.55784459]
[1734240520423,2.1,220.91,220.89,5.55784459]
[1734240532536,1.5446,220.97,220.89,5.55784459]
[1734240532537,189.34349339,221.07,220.89,13.18325058]
[1734240532744,9.72540599,220.98,220.91,7.62540599]
[1734240532933,7.62540599,220.98,220.91,7.62540599]
[1734240533137,2.1,220.97,220.91,7.62540599]
[1734240533642,2.1,220.97,220.93,7.62540599]
[1734240534341,2.1,220.98,220.94,2.2635]
[1734240535633,2.263,221.0,220.94,2.2635]
[1734240535840,2.1,220.99,220.94,2.2635]
[1734240538846,2.1,220.98,220.95,7.62540599]
[1734240539745,2.1,220.98,220.96,2.2633]
[1734240540350,2.1,221.01,220.98,2.2631]
[1734240540948,2.1,221.01,220.94,9.88890599]
[1734240541146,9.72540599,221.01,220.94,7.62540599]
[1734240542447,9.72540599,221.01,220.91,1.4513]
[1734240542645,2.2632,220.98,220.94,7.62540599]
[1734240544642,2.2632,220.98,220.93,2.2637]
[1734240544847,2.2632,220.98,220.94,7.62540599]
[1734240546354,4.3629,221.01,220.95,2.2635]
[1734240546551,4.3629,221.01,220.96,7.62540599]
[1734240547256,2.2632,220.98,220.92,2.2638]
[1734240547455,2.2632,220.98,220.93,12.83725234]
[1734240547657,2.2632,220.98,220.93,7.62540599]
[1734240550558,9.72540599,221.01,220.9,5.33379611]
[1734240550756,2.2633,220.97,220.93,7.62540599]
[1734240550955,2.1,220.96,220.93,7.62540599]
[1734240553662,2.1,220.96,220.95,5.35063567]
[1734240556760,2.1,220.96,220.95,12.97604166]
[1734240556961,2.1,220.98,220.95,12.97604166]
[1734240557172,2.1,220.98,220.97,7.62540599]
[1734240558663,2.1,221.01,220.97,7.62540599]
[1734240558968,2.1,221.01,220.99,7.62540599]
[1734240565067,4.3629,221.01,220.97,7.62540599]
[1734240573276,2.263,221.0,220.97,7.62540599]
[1734240574673,4.3629,221.01,220.97,7.62540599]
[1734240576783,4.3629,221.01,220.98,5.23182823]
[1734240577083,4.3629,221.01,220.97,7.62540599]
[1734240577276,4.3629,221.01,220.98,5.23211232]
[1734240577482,4.3629,221.01,220.99,5.2345823]
[1734240577683,4.3629,221.01,220.97,7.62540599]
[1734240577977,4.3629,221.01,220.98,5.23467129]
[1734240578176,4.3629,221.01,220.99,5.23467129]
[1734240578383,4.3629,221.01,220.97,7.62540599]
[1734240578675,4.3629,221.01,220.98,5.23582364]
[1734240578983,4.3629,221.01,220.99,5.23582364]
[1734240579178,4.3629,221.01,220.97,7.62540599]
[1734240579379,4.3629,221.01,220.98,5.23555177]
[1734240579680,4.3629,221.01,220.99,5.23555177]
[1734240579881,4.3629,221.01,220.97,7.62540599]
[1734240580285,4.3629,221.01,220.98,5.23600323]
[1734240580480,2.263,221.0,220.99,5.23600323]
[1734240580676,2.1,221.01,220.96,7.62540599]
[1734240580885,2.1,221.01,220.97,5.23622152]
[1734240581082,2.1,221.01,220.98,5.23622152]
[1734240581384,2.1,221.01,220.95,5.35063567]
[1734240581684,2.1,221.01,220.96,5.23720358]
[1734240581883,2.1,221.01,220.97,5.23720358]
[1734240582081,2.2633,220.97,220.95,12.97604166]
[1734240582277,2.2633,220.97,220.96,5.23640071]
[1734240586182,2.2633,220.97,220.95,12.97604166]
[1734240586485,4.3634,220.96,220.95,12.97604166]
[1734240586680,4.3634,220.96,220.95,18.21046289]
[1734240588181,4.3634,220.96,220.95,12.97604166]
[1734240588686,4.3634,220.96,220.95,5.35063567]
[1734240591582,4.3634,220.96,220.95,10.58404798]
[1734240591876,4.3634,220.96,220.95,5.35063567]
[1734240594588,4.3634,220.96,220.95,10.58364721]
[1734240595383,2.1,220.96,220.95,10.58364721]
[1734240595783,2.1,220.96,220.95,10.58348445]
[1734240596583,2.1,220.99,220.95,10.58348445]
[1734240596883,2.1,220.99,220.97,7.62540599]
[1734240598588,4.3631,220.99,220.97,7.62540599]
[1734240598787,4.3631,220.99,220.95,12.97604166]
[1734240600792,2.2633,220.97,220.95,12.97604166]
[1734240601086,9.72540599,220.99,220.86,2.9818]
[1734240601293,9.72540599,220.99,220.89,11.10052979]
[1734240601483,9.72540599,220.99,220.91,7.62540599]
[1734240601984,2.2633,220.97,220.91,7.62540599]
[1734240602190,9.72540599,220.99,220.91,7.62540599]
[1734240603492,9.72540599,220.99,220.93,5.35964087]
[1734240603790,2.2635,220.95,220.93,5.35964087]
[1734240603988,2.1,220.94,220.93,12.98504686]
[1734240604288,2.1,220.97,220.93,12.98504686]
[1734240604482,2.1,220.98,220.97,7.62540599]
[1734240604687,2.1,220.99,220.97,7.62540599]
[1734240606582,2.1,221.0,220.97,7.62540599]
[1734240606786,2.1,221.0,220.98,5.23048806]
[1734240606986,2.1,221.0,220.97,7.62540599]
[1734240607183,2.1,221.0,220.98,5.23120719]
[1734240607391,2.1,221.01,220.97,7.62540599]
[1734240607687,2.1,221.01,220.98,5.23191371]
[1734240607891,2.1,221.01,220.97,7.62540599]
[1734240608091,2.1,221.01,220.98,5.23191481]
[1734240608289,2.1,221.01,220.97,7.62540599]
[1734240608490,2.1,221.01,220.98,5.23203041]
[1734240608683,2.1,221.01,220.97,7.62540599]
[1734240608989,2.1,221.01,220.98,5.2319334]
[1734240609191,2.1,221.01,220.97,7.62540599]
[1734240609385,2.1,221.01,220.98,5.23254047]
[1734240609582,2.1,221.01,220.99,7.62540599]
[1734240609991,2.1,221.01,221.0,5.23035427]
[1734240610191,2.2626,221.04,221.0,5.23035427]
[1734240610392,4.3626,221.04,221.01,7.62540599]
[1734240610894,4.3426,221.04,221.01,7.62540599]
[1734240613089,2.2624,221.06,221.01,7.62540599]
[1734240613290,2.08,221.06,221.03,7.62540599]
[1734240613789,27.44528579,221.07,221.03,7.62540599]
[1734240613993,29.52528579,221.07,221.03,7.62540599]
[1734240615293,2.08,221.07,221.03,7.62540599]
[1734240616697,2.08,221.07,221.01,7.62540599]
[1734240617699,2.2623,221.06,221.01,7.62540599]
[1734240619088,2.08,221.07,221.03,7.62540599]
[1734240619297,4.3422,221.07,221.03,7.62540599]
[1734240620497,2.08,221.07,221.03,7.62540599]
[1734240620699,7.62540599,221.06,220.94,4.4841]
[1734240621000,2.08,221.07,220.99,7.62540599]
[1734240621190,2.08,221.07,220.94,4.4841]
[1734240621191,2.08,221.07,221.01,7.62540599]
[1734240621491,2.2625,221.05,221.01,7.62540599]
[1734240621795,7.62540599,221.06,220.99,7.62540599]
[1734240622496,2.2628,221.02,220.99,7.62540599]
[1734240622688,2.08,221.01,220.99,7.62540599]
[1734240634196,2.08,221.01,220.97,2.2632]
[1734240634402,2.08,221.01,220.98,7.62540599]
[1734240634603,4.3429,221.01,220.98,7.62540599]
[1734240634804,4.3429,221.01,220.94,2.9828]
[1734240634805,2.08,221.01,220.96,7.62540599]
[1734240636706,4.3429,221.01,220.96,7.62540599]
[1734240638101,2.263,221.0,220.96,7.62540599]
[1734240638597,2.08,221.01,220.96,7.62540599]
[1734240638598,2.2631,220.99,220.96,7.62540599]
[1734240639302,4.343,221.01,220.96,7.62540599]
[1734240639904,2.08,221.01,220.94,2.9828]